fUST/lending_fUST_20250715
["ID","MTS","AMOUNT","RATE_DAILY","PERIOD"]
[372195363,1752545442305,-151.0,0.00021917,2]
[372195365,1752545442323,-151.0,0.00021917,2]
[372195367,1752545442332,-151.0,0.00021917,2]
[372195369,1752545442341,-465.37496815,0.00021917,3]
[372195371,1752545442350,-151.0,0.00021917,2]
[372195372,1752545442359,-259.68100328,0.00021917,3]
[372195375,1752545442369,-151.0,0.00021917,2]
[372195376,1752545442378,-166.675478,0.00021917,2]
[372195378,1752545442387,-460.0,0.00021917,3]
[372195380,1752545442397,-460.0,0.00021917,3]
[372195382,1752545442407,-460.0,0.00021917,3]
[372195384,1752545442417,-464.71146012,0.00021917,3]
[372195386,1752545442426,-460.0,0.00021917,3]
[372195388,1752545442436,-460.0,0.00021917,3]
[372195390,1752545442446,-460.0,0.00021917,3]
[372195392,1752545442456,-460.0,0.00021917,3]
[372195394,1752545442465,-460.0,0.00021917,3]
[372195396,1752545442475,-464.16847953,0.00021917,3]
[372195398,1752545442484,-462.99654826,0.00021917,3]
[372195400,1752545442494,-152.513781,0.00021917,2]
[372195402,1752545442503,-461.22689593,0.00021917,3]
[372195404,1752545442513,-461.75638181,0.00021917,3]
[372195406,1752545442522,-577.66831075,0.00021917,3]
[372195408,1752545442531,-460.68616477,0.00021917,3]
[372195410,1752545442541,-462.49206614,0.00021917,3]
[372195412,1752545442551,-460.0,0.00021917,3]
[372195414,1752545442560,-318.50291852,0.00021917,3]
[372195416,1752545442571,-460.0,0.00021917,3]
[372195418,1752545442585,-461.20633806,0.00021917,3]
[372195420,1752545442595,-460.0,0.00021917,3]
[372195422,1752545442605,-456.64740352,0.00021917,3]
[372195424,1752545442614,-460.0,0.00021917,3]
[372195426,1752545442624,-364.31391101,0.00021917,3]
[372195428,1752545442634,-462.46831656,0.00021917,3]
[372195430,1752545442644,-460.0,0.00021917,3]
[372195432,1752545442655,-460.0,0.00021917,3]
[372195434,1752545442665,-280.50758737,0.00021917,3]
[372195436,1752545442675,-460.0,0.00021917,3]
[372195438,1752545442685,-460.0,0.00021917,3]
[372195441,1752545442696,-460.0,0.00021917,3]
[372195442,1752545442705,-465.0805842,0.00021917,3]
[372195444,1752545442715,-461.50260577,0.00021917,3]
[372195446,1752545442725,-460.0,0.00021917,3]
[372195449,1752545442735,-460.0,0.00021917,3]
[372195450,1752545442744,-461.07925486,0.00021917,3]
[372195452,1752545442754,-460.0,0.00021917,3]
[372195454,1752545442764,-460.0,0.00021917,3]
[372195457,1752545442773,-810.33,0.00021917,3]
[372195459,1752545442783,-460.0,0.00021917,3]
[372195462,1752545442791,-460.0,0.00021917,3]
[372195464,1752545442801,-460.0,0.00021917,3]
[372195466,1752545442810,-460.0,0.00021917,3]
[372195468,1752545442819,-460.4690633,0.00021917,3]
[372195471,1752545442829,-460.58,0.00021917,3]
[372195473,1752545442838,-236.70929413,0.00021917,3]
[372195475,1752545442848,-883.28,0.00021917,3]
[372195477,1752545442857,-551.86511765,0.00021917,3]
[372195479,1752545442866,-460.0,0.00021917,3]
[372195481,1752545442876,-460.0,0.00021917,3]
[372195483,1752545442885,-460.0,0.00021917,3]
[372195485,1752545442894,-460.0,0.00021917,3]
[372195487,1752545442904,-460.0,0.00021917,3]
[372195490,1752545442913,-460.0,0.00021917,3]
[372195492,1752545442923,-463.71295958,0.00021917,3]
[372195494,1752545442934,-463.61667837,0.00021917,3]
[372195496,1752545442943,-368.99398931,0.00021917,3]
[372195498,1752545442952,-461.41480439,0.00021917,3]
[372195500,1752545442961,-463.32390032,0.00021917,3]
[372195502,1752545442971,-463.07688323,0.00021917,3]
[372195504,1752545442980,-460.0,0.00021917,3]
[372195506,1752545442990,-460.0,0.00021917,3]
[372195508,1752545443000,-255.05234561,0.00021917,2]
[372195510,1752545443009,-460.0,0.00021917,3]
[372195512,1752545443019,-460.0,0.00021917,3]
[372195514,1752545443029,-460.0,0.00021917,3]
[372195516,1752545443038,-469.51554934,0.00021917,3]
[372195518,1752545443047,-460.0,0.00021917,3]
[372195520,1752545443056,-460.0,0.00021917,3]
[372195522,1752545443066,-460.0,0.00021917,3]
[372195524,1752545443075,-460.0,0.00021917,3]
[372195526,1752545443084,-461.98714617,0.00021917,3]
[372195528,1752545443094,-460.0,0.00021917,3]
[372195530,1752545443103,-460.0,0.00021917,3]
[372195532,1752545443113,-460.0,0.00021917,3]
[372195534,1752545443123,-460.0,0.00021917,3]
[372195536,1752545443132,-460.0,0.00021917,3]
[372195538,1752545443141,-460.0,0.00021917,3]
[372195540,1752545443150,-460.0,0.00021917,3]
[372195542,1752545443161,-460.0,0.00021917,3]
[372195544,1752545443170,-464.20634618,0.00021917,3]
[372195546,1752545443180,-441.32535623,0.00021917,3]
[372195548,1752545443189,-460.0,0.00021917,3]
[372195550,1752545443199,-466.73183842,0.00021917,3]
[372195552,1752545443209,-460.0,0.00021917,3]
[372195554,1752545443218,-464.909314,0.00021917,3]
[372195556,1752545443228,-423.53330316,0.00021917,3]
[372195558,1752545443236,-460.0,0.00021917,3]
[372195560,1752545443246,-460.0,0.00021917,3]
[372195562,1752545443255,-460.0,0.00021917,3]
[372195564,1752545443263,-1025.33267632,0.00021917,3]
[372195566,1752545443272,-460.0,0.00021917,3]
[372195568,1752545443282,-462.88119923,0.00021917,3]
[372195570,1752545443291,-460.0,0.00021917,3]
[372195572,1752545443300,-436.66801706,0.00021917,3]
[372195574,1752545443309,-460.0,0.00021917,3]
[372195576,1752545443319,-460.0,0.00021917,3]
[372195578,1752545443328,-460.0,0.00021917,3]
[372195580,1752545443338,-460.0,0.00021917,3]
[372195582,1752545443348,-502.16,0.00021917,3]
[372195584,1752545443357,-460.0,0.00021917,3]
[372195586,1752545443367,-461.94989761,0.00021917,3]
[372195588,1752545443376,-460.0,0.00021917,3]
[372195590,1752545443386,-2045.23,0.00021917,3]
[372195592,1752545443395,-3612.1,0.00021917,3]
[372195594,1752545443404,-460.0,0.00021917,3]
[372195596,1752545443414,-460.0,0.00021917,3]
[372195597,1752545443425,-631.13,0.00021917,3]
[372195599,1752545443436,-462.34051798,0.00021917,3]
[372195601,1752545443446,-460.0,0.00021917,3]
[372195603,1752545443455,-890.98,0.00021917,3]
[372195605,1752545443464,-1996.72,0.00021917,3]
[372195608,1752545443474,-462.76559744,0.00021917,3]
[372195611,1752545443483,-468.43847699,0.00021917,3]
[372195614,1752545443492,-460.0,0.00021917,3]
[372195617,1752545443502,-461.95446457,0.00021917,3]
[372195619,1752545443512,-463.47430099,0.00021917,3]
[372195621,1752545443523,-460.0,0.00021917,3]
[372195623,1752545443532,-1252.16,0.00021917,3]
[372195625,1752545443542,-846.72,0.00021917,3]
[372195627,1752545443552,-460.0,0.00021917,3]
[372195629,1752545443561,-460.0,0.00021917,3]
[372195631,1752545443571,-460.51596285,0.00021917,3]
[372195633,1752545443580,-264.16713786,0.00021917,3]
[372195635,1752545443593,-361.04747461,0.00021917,3]
[372195637,1752545443602,-708.32,0.00021917,3]
[372195639,1752545443611,-460.0,0.00021917,3]
[372195641,1752545443622,-460.0,0.00021917,3]
[372195643,1752545443633,-463.3863511,0.00021917,3]
[372195645,1752545443642,-485.37236708,0.00021917,3]
[372195647,1752545443651,-460.0,0.00021917,3]
[372195649,1752545443661,-286.79657035,0.00021917,3]
[372195651,1752545443673,-1627.33,0.00021917,3]
[372195653,1752545443683,-647.85,0.00021917,3]
[372195655,1752545443692,-460.0,0.00021917,3]
[372195667,1752545443789,-522.0,0.00021917,3]
[372195669,1752545443812,-460.0,0.00021917,3]
[372195671,1752545443822,-601.73,0.00021917,3]
[372195673,1752545443831,-1256.94,0.00021917,3]
[372195675,1752545443840,-462.02190496,0.00021917,3]
[372195677,1752545443849,-793.56,0.00021917,3]
[372195679,1752545443859,-4663.13,0.00021917,3]
[372195681,1752545443868,-460.0,0.00021917,3]
[372195683,1752545443878,-460.0,0.00021917,3]
[372195685,1752545443887,-464.62915246,0.00021917,3]
[372195687,1752545443897,-462.64319519,0.00021917,3]
[372195689,1752545443906,-460.0,0.00021917,3]
[372195691,1752545443915,-460.0,0.00021917,3]
[372195693,1752545443926,-1471.98,0.00021917,3]
[372195695,1752545443936,-1471.98,0.00021917,3]
[372195697,1752545443946,-1471.98,0.00021917,3]
[372195699,1752545443955,-1471.98,0.00021917,3]
[372195701,1752545443965,-1471.98,0.00021917,3]
[372195703,1752545443974,-1471.98,0.00021917,3]
[372195705,1752545443983,-1471.98,0.00021917,3]
[372195707,1752545443992,-1471.98,0.00021917,3]
[372195709,1752545444001,-1471.98,0.00021917,3]
[372195711,1752545444010,-1471.98,0.00021917,3]
[372195713,1752545444019,-1471.98,0.00021917,3]
[372195715,1752545444028,-460.0,0.00021917,3]
[372195717,1752545444037,-1471.98,0.00021917,3]
[372195719,1752545444047,-1471.98,0.00021917,3]
[372195721,1752545444056,-460.0,0.00021917,3]
[372195722,1752545444065,-4731.55,0.00021917,3]
[372195724,1752545444074,-767.95,0.00021917,3]
[372195726,1752545444082,-460.0,0.00021917,3]
[372195728,1752545444092,-2865.94,0.00021917,3]
[372195730,1752545444101,-1127.77,0.00021917,3]
[372195732,1752545444110,-460.0,0.00021917,3]
[372195734,1752545444119,-460.0,0.00021917,3]
[372195736,1752545444130,-460.0,0.00021917,3]
[372195738,1752545444139,-460.0,0.00021917,3]
[372195740,1752545444148,-462.81519732,0.00021917,3]
[372195742,1752545444157,-583.78461303,0.00021917,3]
[372195744,1752545444166,-460.0,0.00021917,3]
[372195746,1752545444178,-838.78,0.00021917,3]
[372195748,1752545444187,-460.0,0.00021917,3]
[372195750,1752545444196,-543.21,0.00021917,3]
[372195752,1752545444205,-462.31094689,0.00021917,3]
[372195754,1752545444215,-595.01,0.00021917,3]
[372195756,1752545444224,-460.0,0.00021917,3]
[372195758,1752545444234,-460.0,0.00021917,3]
[372195760,1752545444244,-460.0,0.00021917,3]
[372195762,1752545444254,-460.0,0.00021917,3]
[372195764,1752545444263,-460.0,0.00021917,3]
[372195766,1752545444273,-460.0,0.00021917,3]
[372195768,1752545444283,-460.0,0.00021917,3]
[372195770,1752545444293,-463.59859209,0.00021917,3]
[372195772,1752545444302,-460.0,0.00021917,3]
[372195774,1752545444312,-460.0,0.00021917,3]
[372195776,1752545444321,-464.38015161,0.00021917,2]
[372195778,1752545444331,-466.1419611,0.00021917,3]
[372195780,1752545444341,-2190.41,0.00021917,3]
[372195782,1752545444350,-2017.97,0.00021917,3]
[372195784,1752545444360,-460.0,0.00021917,3]
[372195786,1752545444369,-475.93,0.00021917,3]
[372195788,1752545444378,-201.15377436,0.00021917,3]
[372195790,1752545444389,-151.0,0.00021917,2]
[372195792,1752545444398,-151.0,0.00021917,2]
[372195795,1752545444408,-151.0,0.00021917,2]
[372195797,1752545444417,-266.444186,0.00021917,2]
[372195799,1752545444429,-1517.02,0.00021917,3]
[372195801,1752545444438,-460.0,0.00021917,3]
[372195803,1752545444447,-460.0,0.00021917,3]
[372195805,1752545444456,-639.95,0.00021917,3]
[372195807,1752545444466,-387.33605473,0.00021917,3]
[372195809,1752545444475,-460.11,0.00021917,3]
[372195811,1752545444485,-460.0,0.00021917,3]
[372195813,1752545444494,-554.0,0.00021917,3]
[372195815,1752545444503,-460.0,0.00021917,3]
[372195817,1752545444513,-460.0,0.00021917,3]
[372195819,1752545444523,-460.0,0.00021917,3]
[372195821,1752545444532,-460.0,0.00021917,3]
[372195823,1752545444541,-460.0,0.00021917,3]
[372195825,1752545444550,-460.0,0.00021917,3]
[372195827,1752545444559,-468.94,0.00021917,3]
[372195829,1752545444570,-460.0,0.00021917,3]
[372195831,1752545444580,-460.0,0.00021917,3]
[372195833,1752545444593,-974.23,0.00021917,3]
[372195835,1752545444603,-551.27,0.00021917,3]
[372195837,1752545444613,-2690.04,0.00021917,3]
[372195839,1752545444622,-460.0,0.00021917,3]
[372195841,1752545444633,-728.14,0.00021917,3]
[372195843,1752545444643,-460.98693906,0.00021917,3]
[372195845,1752545444653,-460.0,0.00021917,3]
[372195847,1752545444665,-1120.92,0.00021917,3]
[372195849,1752545444679,-460.0,0.00021917,3]
[372195852,1752545444690,-460.0,0.00021917,3]
[372195854,1752545444701,-460.0,0.00021917,3]
[372195856,1752545444711,-195.71935403,0.00021917,2]
[372195858,1752545444721,-460.0,0.00021917,3]
[372195860,1752545444731,-460.0,0.00021917,3]
[372195862,1752545444741,-460.0,0.00021917,3]
[372195864,1752545444750,-460.0,0.00021917,3]
[372195866,1752545444760,-460.0,0.00021917,3]
[372195867,1752545444770,-460.0,0.00021917,3]
[372195869,1752545444779,-460.0,0.00021917,3]
[372195871,1752545444789,-3360.05,0.00021917,3]
[372195873,1752545444799,-460.0,0.00021917,3]
[372195875,1752545444809,-750.43,0.00021917,3]
[372195877,1752545444819,-2812.39,0.00021917,3]
[372195879,1752545444828,-1489.21,0.00021917,3]
[372195881,1752545444837,-460.0,0.00021917,3]
[372195883,1752545444847,-460.0,0.00021917,3]
[372195885,1752545444857,-508.65276798,0.00021917,3]
[372195887,1752545444867,-285.08013672,0.00021917,3]
[372195889,1752545444877,-460.0,0.00021917,3]
[372195891,1752545444887,-462.62909942,0.00021917,3]
[372195893,1752545444897,-460.0,0.00021917,3]
[372195895,1752545444906,-491.86356585,0.00021917,3]
[372195897,1752545444916,-460.0,0.00021917,3]
[372195899,1752545444928,-460.0,0.00021917,3]
[372195901,1752545444938,-460.0,0.00021917,3]
[372195903,1752545444947,-151.0,0.00021918,2]
[372195905,1752545444957,-151.0,0.00021918,2]
[372195907,1752545444966,-151.0,0.00021918,2]
[372195909,1752545444976,-151.0,0.00021918,2]
[372195911,1752545444986,-151.0,0.00021918,2]
[372195913,1752545444995,-264.738121,0.00021918,2]
[372195915,1752545445006,-151.0,0.00021918,2]
[372195918,1752545445016,-151.0,0.00021918,2]
[372195920,1752545445025,-151.0,0.00021918,2]
[372195922,1752545445035,-151.0,0.00021918,2]
[372195924,1752545445044,-151.0,0.00021918,2]
[372195926,1752545445054,-400.0,0.00021918,7]
[372195928,1752545445064,-596.92724315,0.00021954,2]
[372195930,1752545445073,-1471.98,0.00021972,3]
[372195932,1752545445083,-501.05616318,0.00021973,2]
[372195934,1752545445092,-501.12629125,0.00021973,2]
[372195936,1752545445101,-500.0,0.00021973,2]
[372195938,1752545445111,-500.0,0.00021973,2]
[372195940,1752545445120,-500.0,0.00021973,2]
[372195942,1752545445130,-501.38276652,0.00021973,2]
[372195944,1752545445140,-513.88759956,0.00021973,2]
[372195946,1752545445149,-648.40120252,0.00021973,2]
[372195948,1752545445158,-500.0,0.00021973,2]
[372195950,1752545445168,-503.61111199,0.00021973,2]
[372195952,1752545445180,-500.0,0.00021973,2]
[372195954,1752545445190,-501.13581606,0.00021973,2]
[372195956,1752545445199,-500.0,0.00021973,2]
[372195958,1752545445209,-153.0,0.00021977,2]
[372195960,1752545445219,-153.0,0.00021977,2]
[372195962,1752545445229,-407.0,0.00021989,2]
[372195964,1752545445239,-1471.98,0.00021999,3]
[372195966,1752545445250,-5000.0,0.00022,20]
[372195968,1752545445259,-812.45,0.00022,7]
[372195970,1752545445269,-3162.4,0.00022,7]
[372195972,1752545445279,-151.0,0.00022,2]
[372195974,1752545445290,-438.0,0.00022,2]
[372195976,1752545445299,-1229.37294208,0.00022038,6]
[372195978,1752545445309,-800.0,0.00022055,2]
[372195980,1752545445318,-1471.98,0.00022099,3]
[372195982,1752545445328,-24730.98,0.000221,2]
[372195984,1752545445338,-151.0,0.000221,10]
[372195986,1752545445347,-151.0,0.000221,10]
[372195988,1752545445357,-609.84008902,0.00022133,2]
[372195990,1752545445366,-800.0,0.00022152,2]
[372195992,1752545445376,-1471.98,0.00022172,3]
[372195994,1752545445385,-500.0,0.00022173,2]
[372195996,1752545445394,-502.54996082,0.00022173,2]
[372195998,1752545445404,-501.29498286,0.00022173,2]
[372196000,1752545445413,-262.3693145,0.00022173,2]
[372196002,1752545445422,-500.23783849,0.00022173,2]
[372196004,1752545445434,-500.49446741,0.00022173,2]
[372196006,1752545445443,-501.61081887,0.00022173,2]
[372196008,1752545445454,-500.490196,0.00022173,2]
[372196010,1752545445463,-500.0,0.00022173,2]
[372196012,1752545445472,-500.0,0.00022173,2]
[372196014,1752545445481,-500.0,0.00022173,2]
[372196016,1752545445490,-503.33478226,0.00022173,2]
[372196018,1752545445500,-500.0,0.00022173,2]
[372196020,1752545445510,-500.0,0.00022173,2]
[372196022,1752545445519,-501.34471216,0.00022173,2]
[372196024,1752545445528,-501.29597597,0.00022173,2]
[372196026,1752545445538,-572.38956284,0.00022173,2]
[372196028,1752545445547,-502.63451951,0.00022173,2]
[372196030,1752545445557,-502.48160875,0.00022173,2]
[372196032,1752545445567,-500.0,0.00022173,2]
[372196034,1752545445578,-500.0,0.00022173,2]
[372196036,1752545445592,-500.0,0.00022173,2]
[372196038,1752545445602,-500.0,0.00022173,2]
[372196040,1752545445611,-500.0,0.00022173,2]
[372196042,1752545445620,-500.0,0.00022173,2]
[372196044,1752545445631,-1229.37294208,0.00022176,6]
[372196046,1752545445641,-1471.98,0.00022188,3]
[372196048,1752545445651,-1471.98,0.00022188,3]
[372196052,1752545445662,-1471.98,0.00022189,3]
[372196054,1752545445673,-1471.98,0.00022189,3]
[372196057,1752545445685,-1471.98,0.00022189,3]
[372196059,1752545445695,-1471.98,0.00022189,3]
[372196062,1752545445705,-1472.04133689,0.00022189,3]
[372196064,1752545445715,-500.0,0.00022189,2]
[372196065,1752545445724,-500.0,0.00022189,2]
[372196067,1752545445733,-500.0,0.00022189,2]
[372196069,1752545445743,-500.0,0.00022189,2]
[372196071,1752545445754,-500.0,0.00022189,2]
[372196073,1752545445763,-500.0,0.00022189,2]
[372196075,1752545445773,-500.0,0.00022189,2]
[372196077,1752545445783,-500.0,0.00022189,2]
[372196080,1752545445793,-500.0,0.00022189,2]
[372196082,1752545445803,-500.0,0.00022189,2]
[372196084,1752545445812,-500.0,0.00022189,2]
[372196086,1752545445822,-500.0,0.00022189,2]
[372196088,1752545445831,-500.0,0.00022189,2]
[372196089,1752545445841,-500.0,0.00022189,2]
[372196091,1752545445850,-291.34866495,0.00022189,2]
[372196093,1752545445860,-500.0,0.00022189,2]
[372196095,1752545445870,-600.0,0.00022189,2]
[372196097,1752545445879,-500.83519768,0.00022189,2]
[372196099,1752545445888,-500.0,0.00022189,2]
[372196101,1752545445898,-500.0,0.00022189,2]
[372196103,1752545445908,-493.5364603,0.00022189,2]
[372196105,1752545445917,-500.0,0.00022189,2]
[372196107,1752545445932,-351.86894305,0.00022189,2]
[372196109,1752545445944,-500.0,0.00022189,2]
[372196111,1752545445962,-95921.97362873,0.0002219,2]
[372196113,1752545445978,-75312.9898164,0.0002219,2]
[372196138,1752545446229,-1479.29119856,0.0002219,2]
[372196141,1752545446261,-4050.33519325,0.0002219,2]
[372196143,1752545446272,-14744.74748405,0.0002219,2]
[372196157,1752545446428,-429.0948676,0.000214,2]
[372196159,1752545446437,-576.7692041,0.000214,2]
[372196161,1752545446447,-596.92724315,0.00022023,2]
[372196162,1752545446456,-596.92724315,0.00022091,2]
[372196164,1752545446466,-54412.63630774,0.0002219,2]
[372196166,1752545446476,-48237.564997,0.0002219,2]
[372196185,1752545446689,-2000.0,0.0002219,2]
[372196187,1752545446700,-32840.22980055,0.0002219,2]
[372196188,1752545446711,-6718.77505087,0.0002219,2]
[372197402,1752545652162,240.0,0.00022,30]
[372197403,1752545698934,1000.0,0.00023,30]
[372197406,1752545968946,1736.3,0.000159,2]
[372197408,1752545983525,169.700988,0.00013699,2]
[372197410,1752546437077,-180.25235329,0.00018778,2]
[372197411,1752546437100,-300.0,0.00018799,2]
[372197412,1752546437120,-9.20888036,0.000188,2]
[372197413,1752546508969,1002.52127058,0.00025187,60]
[372197414,1752546510912,849.19328373,0.00025187,120]
[372197415,1752546515690,246.76082451,0.00025187,120]
[372197416,1752546515834,1063.82955666,0.00025187,120]
[372197417,1752546516860,210.7422279,0.00025187,120]
[372197418,1752546516912,1086.72612881,0.00025187,120]
[372197420,1752546518172,185.68215319,0.00025,120]
[372197421,1752546518988,470.89594581,0.00025187,120]
[372197422,1752546519426,513.40253681,0.00025187,120]
[372197425,1752546547187,-624.3154512,0.000189,2]
[372197426,1752546547208,-403.05302442,0.00019,2]
[372197427,1752546547229,-160.66602782,0.00019682,2]
[372197428,1752546568114,-37.15399618,0.00019682,2]
[372197429,1752546568137,-624.31545114,0.00019784,2]
[372197430,1752546568162,-1411.37755268,0.000199,2]
[372197479,1752546632691,-506.4812734,0.00019,2]
[372197480,1752546632701,-11111.78419765,0.000199,2]
[372197481,1752546632711,-1468.94112547,0.000199,2]
[372197483,1752546632720,-11111.78419765,0.00019954,2]
[372197485,1752546632730,-1026.1436335,0.0002,10]
[372197487,1752546632740,-1468.94112529,0.00020107,2]
[372197489,1752546632749,-1468.94112529,0.00020314,3]
[372197491,1752546632758,-1468.94112529,0.00020521,3]
[372197493,1752546632768,-163.317,0.00020654,2]
[372197495,1752546632777,-174.0234911,0.00020724,2]
[372197497,1752546632786,-1468.94112529,0.00020728,3]
[372197499,1752546632796,-207.4,0.0002082,2]
[372197501,1752546632805,-1468.94112529,0.00020934,4]
[372197503,1752546632814,-300.0,0.0002114,2]
[372197505,1752546632823,-1468.94112529,0.00021141,4]
[372197507,1752546632833,-576.7692041,0.00021178,2]
[372197510,1752546632842,-576.7692041,0.00021178,2]
[372197512,1752546632851,-1468.94112529,0.00021348,5]
[372197514,1752546632861,-500.0,0.00021352,2]
[372197516,1752546632870,-576.7692041,0.00021378,2]
[372197518,1752546632879,-576.7692041,0.00021378,2]
[372197520,1752546632888,-2680.62910472,0.000215,2]
[372197522,1752546632900,-786.25379238,0.000215,2]
[372197524,1752546632911,-320.49148748,0.000215,2]
[372197526,1752546632927,-2911.39176825,0.000215,2]
[372197834,1752546638472,-5921.78408229,0.00020007,2]
[372197835,1752546638503,-110.98874284,0.00020007,2]
[372197836,1752546638515,-5079.01137252,0.00020007,2]
[372197837,1752546638525,-1583.26602751,0.000215,2]
[372197838,1752546638549,-8162.99123289,0.000215,2]
[372197958,1752546640446,-933.24475225,0.000215,2]
[372197965,1752546640501,-15517.57132775,0.000215,2]
[372197967,1752546640512,-1468.94112529,0.00021555,5]
[372197969,1752546640521,-468.75,0.00021762,2]
[372197971,1752546640531,-214.37129034,0.00021762,2]
[372197973,1752546640541,-525.51022752,0.00021762,2]
[372197975,1752546640551,-160.0,0.00021762,2]
[372197977,1752546640561,-838.84061749,0.00021762,2]
[372197979,1752546640570,-215.50840239,0.00021762,2]
[372197981,1752546640579,-1468.94112529,0.00021762,5]
[372197983,1752546640589,-160.0,0.00021767,2]
[372197985,1752546640598,-12603.13032295,0.00021767,2]
[372197987,1752546640607,-2987.47,0.0002177,10]
[372197989,1752546640617,-2489.56,0.0002177,10]
[372197991,1752546640628,-151.0,0.0002178,2]
[372197993,1752546640638,-151.0,0.0002178,2]
[372197995,1752546640647,-19564.40556098,0.0002178,2]
[372197997,1752546640659,-3426.25510379,0.0002178,2]
[372197999,1752546640671,-774.77,0.0002178,2]
[372198002,1752546640685,-1375.75854541,0.0002178,2]
[372198004,1752546640696,-151.0,0.0002178,2]
[372198006,1752546640706,-39.96082521,0.0002178,2]
[372198009,1752546640726,-111.03917479,0.0002178,2]
[372198011,1752546640740,-151.0,0.0002178,2]
[372198013,1752546640750,-151.0,0.0002178,2]
[372198015,1752546640759,-3.61572857,0.0002178,2]
[372198017,1752546640771,-147.38427143,0.0002178,2]
[372198019,1752546640781,-151.0,0.0002178,2]
[372198021,1752546640790,-41.98072857,0.0002178,2]
[372198272,1752546643552,-542.075,0.0002178,2]
[372198273,1752546643564,-275.5607214,0.0002178,2]
[372198274,1752546643576,-1140.38355003,0.0002178,2]
[372198275,1752546643586,-2000.0,0.0002178,2]
[372198276,1752546643595,-151.0,0.0002178,2]
[372198277,1752546643604,-2000.0,0.0002178,2]
[372198278,1752546643614,-152.2605973,0.0002178,2]
[372198279,1752546643623,-2000.0,0.0002178,2]
[372198280,1752546643633,-547.85375342,0.0002178,2]
[372198281,1752546643643,-1731.2,0.00021783,10]
[372198283,1752546643652,-2074.63,0.00021796,10]
[372198284,1752546643662,-23289.2303985,0.00021806,2]
[372198286,1752546643671,-168.0,0.0002185,2]
[372198288,1752546643681,-231.498548,0.00021906,8]
[372198289,1752546643693,-418.38,0.00021907,3]
[372198291,1752546643702,-195.92029764,0.00021916,2]
[372198293,1752546643711,-638.82559192,0.00021916,2]
[372198295,1752546643720,-227.07294457,0.00021916,2]
[372198297,1752546643730,-500.0,0.00021916,2]
[372198300,1752546643739,-500.0,0.00021916,2]
[372198302,1752546643748,-500.0,0.00021916,2]
[372198304,1752546643757,-250.53087799,0.00021916,2]
[372198306,1752546643767,-500.0,0.00021916,2]
[372198308,1752546643775,-500.0,0.00021916,2]
[372198310,1752546643785,-361.97254592,0.00021916,2]
[372198312,1752546643795,-460.0,0.00021917,3]
[372198314,1752546643804,-460.0,0.00021917,3]
[372198316,1752546643813,-483.58,0.00021917,3]
[372198318,1752546643824,-462.70454384,0.00021917,3]
[372198320,1752546643833,-460.0,0.00021917,3]
[372198322,1752546643843,-460.0,0.00021917,3]
[372198324,1752546643854,-466.87969275,0.00021917,3]
[372198326,1752546643872,-460.0,0.00021917,3]
[372198328,1752546643882,-463.02764699,0.00021917,3]
[372198330,1752546643892,-464.13875521,0.00021917,3]
[372198332,1752546643902,-464.24167677,0.00021917,3]
[372198334,1752546643911,-460.0,0.00021917,3]
[372198336,1752546643923,-460.0,0.00021917,3]
[372198338,1752546643938,-464.32367563,0.00021917,3]
[372198340,1752546643948,-462.99082905,0.00021917,3]
[372198342,1752546643957,-466.08593492,0.00021917,3]